bitfinex/quotes_BTCUSD_20220115
["timestamp","ask_amount","ask_price","bid_price","bid_amount"]
[1642218524822,0.2314821,43047.0,43046.0,8.595e-05]
[1642218525021,0.3044321,43047.0,43046.0,8.595e-05]
[1642218525221,0.6803851,43047.0,43046.0,8.595e-05]
[1642218525422,0.7803851,43047.0,43046.0,8.595e-05]
[1642218526869,0.8083851,43047.0,43046.0,8.595e-05]
[1642218527072,0.8583851,43047.0,43046.0,8.595e-05]
[1642218527470,0.9083851,43047.0,43046.0,8.595e-05]
[1642218528670,0.8803851,43047.0,43046.0,8.595e-05]
[1642218528871,0.9093851,43047.0,43046.0,8.595e-05]
[1642218529674,1.01525171,43047.0,43046.0,8.595e-05]
[1642218529922,0.91525171,43047.0,43046.0,8.595e-05]
[1642218530220,0.88625171,43047.0,43046.0,8.595e-05]
[1642218530520,0.98625171,43047.0,43046.0,8.595e-05]
[1642218530723,0.88625171,43047.0,43046.0,8.595e-05]
[1642218530919,1.01825171,43047.0,43046.0,8.595e-05]
[1642218531322,0.91825171,43047.0,43046.0,8.595e-05]
[1642218532122,1.01825171,43047.0,43046.0,8.595e-05]
[1642218532724,0.98625171,43047.0,43046.0,8.595e-05]
[1642218532924,1.01825171,43047.0,43046.0,8.595e-05]
[1642218534168,0.98625171,43047.0,43046.0,8.595e-05]
[1642218535072,1.01925171,43047.0,43046.0,8.595e-05]
[1642218535472,0.99250171,43047.0,43046.0,8.595e-05]
[1642218536274,0.95950171,43047.0,43046.0,8.595e-05]
[1642218536876,0.99350171,43047.0,43046.0,8.595e-05]
[1642218537518,1.17552792,43047.0,43046.0,8.595e-05]
[1642218537718,0.64526933,43047.0,43046.0,8.595e-05]
[1642218537916,0.456153,43047.0,43046.0,8.595e-05]
[1642218538117,0.422153,43047.0,43046.0,8.595e-05]
[1642218539320,0.522153,43047.0,43046.0,8.595e-05]
[1642218539921,0.475953,43047.0,43046.0,8.595e-05]
[1642218552720,0.2919,43050.0,43046.0,8.595e-05]
[1642218552920,1.16934431,43055.0,43046.0,8.595e-05]
[1642218553219,0.375953,43054.0,43046.0,8.595e-05]
[1642218554222,0.475953,43054.0,43046.0,8.595e-05]
[1642218554620,0.475953,43054.0,43046.0,0.11624143]
[1642218555019,0.475953,43054.0,43047.0,6.876e-05]
[1642218555220,0.370953,43054.0,43047.0,6.876e-05]
[1642218556771,0.470953,43054.0,43047.0,6.876e-05]
[1642218557874,0.05809,43053.0,43047.0,6.876e-05]
[1642218558075,0.303,43052.0,43047.0,6.876e-05]
[1642218558473,0.403,43052.0,43047.0,6.876e-05]
[1642218560320,0.00128774,43050.0,43047.0,6.876e-05]
[1642218564672,0.37591,43049.0,43047.0,6.876e-05]
[1642218565571,0.00721124,43046.0,43045.0,0.0011]
[1642218571375,0.23425833,43046.0,43045.0,0.0011]
[1642218571975,0.38312124,43046.0,43045.0,0.0011]
[1642218572976,0.37591,43046.0,43045.0,0.0011]
[1642218576420,0.47591,43046.0,43045.0,0.0011]
[1642218578425,1.06485627,43046.0,43045.0,0.0011]
[1642218579471,0.47591,43046.0,43045.0,0.0011]
[1642218582426,1.06485627,43046.0,43045.0,0.0011]
[1642218583821,0.29805,43045.0,43042.0,0.001589]
[1642218584222,0.29805,43045.0,43043.0,6.876e-05]
[1642218586974,0.29805,43045.0,43030.0,0.69562907]
[1642218586975,1.45,43044.0,43030.0,0.69562907]
[1642218587181,0.3599856,43034.0,43030.0,0.67010689]
[1642218587381,0.11876,43034.0,43033.0,0.0001719]
[1642218587578,0.69799523,43034.0,43033.0,0.0001719]
[1642218587975,0.95910444,43034.0,43033.0,0.0001719]
[1642218588375,1.01722944,43034.0,43032.0,0.00018909]
[1642218588575,0.29805,43033.0,43032.0,0.00018909]
[1642218588774,0.34425,43033.0,43032.0,0.00018909]
[1642218589174,0.44425,43033.0,43032.0,0.00018909]
[1642218589377,0.69008501,43033.0,43032.0,0.00018909]
[1642218589576,0.69008501,43033.0,43030.0,0.00022347]
[1642218589826,0.0012821,43031.0,43030.0,0.00022347]
[1642218590028,0.81826193,43031.0,43030.0,0.00022347]
[1642218590226,0.86826193,43031.0,43030.0,0.00022347]
[1642218590426,0.96826193,43031.0,43030.0,0.00022347]
[1642218591025,1.26996509,43031.0,43030.0,0.00022347]
[1642218592025,0.98326193,43031.0,43030.0,0.00022347]
[1642218593027,1.25015197,43031.0,43030.0,0.00022347]
[1642218593427,1.25601858,43031.0,43030.0,0.00022347]
[1642218593674,0.55,43028.0,43021.0,0.0011]
[1642218593874,0.00122776,43022.0,43021.0,0.0011]
[1642218594074,0.70064146,43022.0,43021.0,0.0011]
[1642218594274,0.75064146,43022.0,43021.0,0.0011]
[1642218594475,0.85064146,43022.0,43021.0,0.0011]
[1642218594673,1.10883172,43022.0,43021.0,0.0011]
[1642218594874,0.85064146,43022.0,43021.0,0.0011]
[1642218595076,0.86264146,43022.0,43021.0,0.0011]
[1642218595975,1.10195237,43022.0,43021.0,0.0011]
[1642218596373,1.08995237,43022.0,43021.0,0.0011]
[1642218597175,1.10695237,43022.0,43021.0,0.0011]
[1642218597423,2.92075791,43022.0,43021.0,0.0011]
[1642218597624,2.92662452,43022.0,43021.0,0.0011]
[1642218598225,2.34181898,43022.0,43021.0,0.0011]
[1642218598427,3.00715968,43022.0,43021.0,0.0011]
[1642218598628,2.76784877,43022.0,43021.0,0.0011]
[1642218599227,2.11050807,43022.0,43021.0,0.0011]
[1642218599427,3.10493223,43022.0,43021.0,0.0011]
[1642218599927,3.11077408,43022.0,43021.0,0.0011]
[1642218600330,0.058149,43014.0,43007.0,0.00564017]
[1642218600530,0.0462,43013.0,43007.0,0.00564017]
[1642218600728,0.0462,43013.0,43012.0,0.33455421]
[1642218601179,0.04334,43013.0,43012.0,0.33486363]
[1642218601779,0.41925,43013.0,43012.0,0.33486363]
[1642218602380,0.41925,43013.0,43012.0,0.00030942]
[1642218602580,0.51925,43013.0,43012.0,0.00030942]
[1642218603180,0.52625,43013.0,43012.0,0.00030942]
[1642218603781,0.52625,43013.0,43009.0,0.00036099]
[1642218604480,0.51925,43013.0,43009.0,0.00036099]
[1642218605121,0.52225,43013.0,43009.0,0.00036099]
[1642218606423,0.51925,43013.0,43009.0,0.00036099]
[1642218606622,0.51925,43013.0,43009.0,0.33820006]
[1642218606823,0.51925,43013.0,43010.0,0.25270967]
[1642218607022,0.51925,43013.0,43010.0,0.25305347]
[1642218607224,0.52425,43013.0,43011.0,0.00032661]
[1642218608029,0.42425,43013.0,43011.0,0.00032661]
[1642218608324,0.41925,43013.0,43011.0,0.00032661]
[1642218608576,0.17917554,43012.0,43011.0,0.00032661]
[1642218608780,0.34425,43012.0,43011.0,0.00032661]
[1642218608978,0.29859579,43012.0,43011.0,0.00032661]
[1642218611080,0.29859579,43012.0,43009.0,0.00036099]
[1642218611281,0.0462,43012.0,43009.0,0.00036099]
[1642218623136,0.00125841,43015.0,43009.0,0.00036099]
[1642218623335,0.89926394,43018.0,43009.0,0.00036099]
[1642218623976,0.376124,43017.0,43009.0,0.00036099]
[1642218624178,0.05814,43016.0,43009.0,0.00036099]
[1642218624378,0.252149,43015.0,43009.0,0.00036099]
[1642218624578,0.05814,43016.0,43009.0,0.00036099]
[1642218625577,0.05814,43016.0,43008.0,0.34007854]
[1642218625778,0.00010314,43015.0,43008.0,0.34007854]
[1642218626178,8.595e-05,43014.0,43008.0,0.34007854]
[1642218626579,6.876e-05,43013.0,43008.0,0.34007854]
[1642218626879,0.00013752,43017.0,43008.0,0.34007854]
[1642218627324,0.00012033,43016.0,43008.0,0.34007854]
[1642218627725,0.00010314,43015.0,43008.0,0.34007854]
[1642218628126,8.595e-05,43014.0,43008.0,0.34007854]
[1642218628525,6.876e-05,43013.0,43008.0,0.34007854]
[1642218628929,0.05814,43016.0,43008.0,0.34007854]
[1642218629324,0.00010314,43015.0,43008.0,0.34007854]
[1642218629726,8.595e-05,43014.0,43008.0,0.34007854]
[1642218630026,6.876e-05,43013.0,43008.0,0.34007854]
[1642218630426,0.00010314,43015.0,43008.0,0.34007854]
[1642218630829,0.37620995,43014.0,43008.0,0.34007854]
[1642218631374,6.876e-05,43013.0,43008.0,0.34007854]
[1642218637655,0.04626876,43013.0,43007.0,0.31428599]
[1642218638875,0.04626876,43013.0,43008.0,0.27676285]
[1642218640678,0.376124,43012.0,43007.0,0.00564017]
[1642218640879,0.50439192,43011.0,43007.0,0.00564017]
[1642218641080,0.252149,43010.0,43007.0,0.00564017]
[1642218642731,0.058153,43009.0,43007.0,0.00564017]
[1642218642932,0.376124,43008.0,43007.0,0.00564017]
[1642218643535,0.422324,43008.0,43007.0,0.00564017]
[1642218645337,0.67441048,43008.0,43007.0,0.00564017]
[1642218645534,0.433324,43008.0,43007.0,0.00564017]
[1642218646575,0.422324,43008.0,43007.0,0.00564017]
[1642218647379,0.525324,43008.0,43007.0,0.00564017]
[1642218648479,0.422324,43008.0,43007.0,0.00564017]
[1642218649077,0.422324,43008.0,43007.0,0.00064017]
[1642218649277,0.525324,43008.0,43007.0,0.00064017]
[1642218649680,1.34471368,43008.0,43007.0,0.00064017]
[1642218650526,1.24171368,43008.0,43007.0,0.00064017]
[1642218651329,1.30471368,43008.0,43007.0,0.00064017]
[1642218652532,1.34171368,43008.0,43007.0,0.00064017]
[1642218653331,1.41071368,43008.0,43007.0,0.00064017]
[1642218654580,1.34171368,43008.0,43007.0,0.00064017]
[1642218655082,1.34171368,43008.0,43000.0,0.16444472]
[1642218655279,0.058159,43003.0,43000.0,0.15998112]
[1642218655482,0.298349,43002.0,43001.0,0.00013753]
[1642218655683,0.29961728,43002.0,43001.0,0.00013753]
[1642218656282,0.60206132,43002.0,43001.0,0.00013753]
[1642218657333,0.60506132,43002.0,43001.0,0.00013753]
[1642218658533,0.60206132,43002.0,43001.0,0.00013753]
[1642218659033,0.82270541,43002.0,43001.0,0.00013753]
[1642218659434,0.82670541,43002.0,43001.0,0.00013753]
[1642218659835,0.82780864,43002.0,43001.0,0.00013753]
[1642218660037,0.9194606,43002.0,43001.0,0.00013753]
[1642218660238,0.69771328,43002.0,43001.0,0.00013753]
[1642218660638,0.69371328,43002.0,43001.0,0.00013753]
[1642218661282,0.70671328,43002.0,43001.0,0.00013753]
[1642218662285,0.93115813,43002.0,43001.0,0.00013753]
[1642218662484,0.91815813,43002.0,43001.0,0.00013753]
[1642218663089,1.06815813,43002.0,43001.0,0.00013753]
[1642218663284,1.08215813,43002.0,43001.0,0.00013753]
[1642218664688,1.06815813,43002.0,43001.0,0.00013753]
[1642218665334,1.08215813,43002.0,43001.0,0.00013753]
[1642218666629,1.06815813,43002.0,43001.0,0.00013753]
[1642218666830,0.84371328,43002.0,43001.0,0.00013753]
[1642218667031,0.75206132,43002.0,43001.0,0.00013753]
[1642218667430,0.76806132,43002.0,43001.0,0.00013753]
[1642218667832,0.99818263,43002.0,43001.0,0.00013753]
[1642218668433,1.04818263,43002.0,43001.0,0.00013753]
[1642218668679,1.09034263,43002.0,43001.0,0.00013753]
[1642218669281,1.10534263,43002.0,43001.0,0.00013753]
[1642218669484,1.10534263,43002.0,42986.0,0.0033]
[1642218669486,0.058172,42994.0,42986.0,0.0033]
[1642218669684,0.5774,42990.0,42986.0,0.0033]
[1642218669882,0.298349,42989.0,42987.0,0.00024066]
[1642218670082,0.00129208,42988.0,42987.0,0.00024066]
[1642218670282,0.42361608,42988.0,42987.0,0.00024066]
[1642218670484,1.9994279,42988.0,42987.0,0.00024066]
[1642218670687,2.0994279,42988.0,42987.0,0.00024066]
[1642218670881,2.00374461,42988.0,42987.0,0.00024066]
[1642218671084,0.77474461,42988.0,42987.0,0.00024066]
[1642218671282,0.79074461,42988.0,42987.0,0.00024066]
[1642218671782,1.02387324,42988.0,42987.0,0.00024066]
[1642218672181,0.79074461,42988.0,42987.0,0.00024066]
[1642218672636,1.01211749,42988.0,42987.0,0.00024066]
[1642218672836,2.24111749,42988.0,42987.0,0.00024066]
[1642218673436,2.25611749,42988.0,42987.0,0.00024066]
[1642218673636,2.50369963,42988.0,42987.0,0.00024066]
[1642218674639,2.48869963,42988.0,42987.0,0.00024066]
[1642218674838,2.48869963,42988.0,42977.0,0.0033]
[1642218674839,0.05819234,42983.0,42977.0,0.0033]
[1642218675038,0.00121977,42979.0,42977.0,0.0033]
[1642218675238,0.298349,42978.0,42977.0,0.0033]
[1642218675639,0.298349,42978.0,42977.0,0.0034719]
[1642218678678,0.83121566,42978.0,42977.0,0.0034719]
[1642218678876,1.76021566,42978.0,42977.0,0.0034719]
[1642218679077,0.448349,42978.0,42976.0,0.0011]
[1642218679277,0.61520142,42977.0,42968.0,0.0011]
[1642218679477,0.00120786,42970.0,42968.0,0.0011]
[1642218679679,0.0462,42969.0,42968.0,0.3511]
[1642218679939,0.03,42978.0,42969.0,2.1]
[1642218680137,0.03,42978.0,42973.0,0.095]
[1642218680337,0.03,42978.0,42976.0,0.29302443]
[1642218680538,0.03,42978.0,42977.0,1.026124]
[1642218680739,0.27039793,42987.0,42977.0,1.026124]
[1642218680740,0.60035921,42987.0,42977.0,0.376124]
[1642218681041,0.37627871,42986.0,42976.0,0.24660509]
[1642218681337,0.00015471,42986.0,42977.0,0.29724842]
[1642218681536,0.00015471,42986.0,42977.0,0.058171]
[1642218681738,0.01,42994.0,42978.0,0.8]
[1642218681938,0.01,42988.0,42983.0,0.24659245]
[1642218682139,0.176124,42987.0,42984.0,0.22129523]
[1642218682339,0.2618226,42984.0,42983.0,0.24659245]
[1642218682538,0.2618226,42984.0,42979.0,0.00010314]
[1642218684886,0.2618226,42984.0,42978.0,0.23927245]
[1642218685088,0.2618226,42984.0,42978.0,0.00012033]
[1642218685286,0.2618226,42984.0,42979.0,0.00010314]
[1642218685585,0.2618226,42984.0,42978.0,0.24002945]
[1642218685786,0.03623464,42987.0,42978.0,0.24002945]
[1642218685986,0.03623464,42987.0,42979.0,0.00010314]
[1642218686988,0.25844785,42989.0,42979.0,0.00010314]
[1642218687187,0.00508595,42990.0,42979.0,0.00010314]
[1642218687430,0.00508595,42990.0,42979.0,0.00018909]
[1642218687634,0.01095256,42990.0,42979.0,0.00018909]
[1642218687931,0.01095256,42990.0,42984.0,0.24202853]
[1642218688129,0.376265,42989.0,42984.0,0.24202853]
[1642218688333,0.376265,42989.0,42985.0,8.595e-05]
[1642218688530,0.476265,42989.0,42985.0,8.595e-05]
[1642218689131,0.00508595,42986.0,42985.0,8.595e-05]
[1642218689330,0.00508595,42986.0,42985.0,0.21274427]
[1642218690131,0.00508595,42986.0,42985.0,8.595e-05]
[1642218690531,0.00508595,42986.0,42983.0,0.00012033]
[1642218691185,0.376265,42985.0,42984.0,0.24453881]
[1642218691391,0.01095256,42990.0,42984.0,0.24453881]
[1642218691585,0.376265,42989.0,42984.0,0.24464195]
[1642218691785,0.376265,42989.0,42985.0,8.595e-05]
[1642218691987,0.02652625,42986.0,42985.0,8.595e-05]
[1642218692989,0.03360233,42986.0,42985.0,8.595e-05]
[1642218693189,0.40986733,42986.0,42985.0,8.595e-05]
[1642218693389,0.65,42984.0,42979.0,0.067]
[1642218693590,0.65,42984.0,42964.0,0.0055]
[1642218693591,0.00124615,42968.0,42964.0,0.0055]
[1642218693788,0.0012515,42974.0,42964.0,0.0055]
[1642218693789,0.00121553,42966.0,42964.0,0.0055]
[1642218693992,0.00121553,42966.0,42965.0,0.00013752]
[1642218694188,0.00508595,42967.0,42965.0,0.00013752]
[1642218695235,0.0462,42969.0,42965.0,0.00013752]
[1642218695236,0.0462,42969.0,42966.0,0.27654641]
[1642218695436,0.05628595,42976.0,42966.0,0.27654641]
[1642218695636,0.0512,42976.0,42967.0,0.00010314]
[1642218695936,0.00508595,42972.0,42967.0,0.00010314]
[1642218696334,0.00508595,42972.0,42970.0,0.26386343]
[1642218696538,0.0512,42976.0,42970.0,0.26386343]
[1642218696737,0.0012654,42979.0,42971.0,0.28224224]
[1642218696936,0.00508595,42981.0,42971.0,0.28353668]
[1642218697135,8.595e-05,42978.0,42972.0,0.376265]
[1642218697335,0.00012033,42980.0,42972.0,0.376265]
[1642218697535,6.876e-05,42977.0,42973.0,0.28342287]
[1642218697735,0.00010314,42979.0,42974.0,0.376265]
[1642218697936,0.00010314,42979.0,42970.0,0.131]
[1642218697937,0.00634354,42975.0,42970.0,0.131]
[1642218698135,0.00508595,42971.0,42970.0,0.131]
[1642218698335,0.00125759,42975.0,42970.0,0.507265]
[1642218698588,0.0051719,42978.0,42970.0,0.131]
[1642218698785,0.0051719,42978.0,42976.0,0.29752114]
[1642218698987,6.876e-05,42977.0,42976.0,0.29752114]
[1642218699785,0.00515471,42977.0,42976.0,0.29252114]
[1642218700185,6.876e-05,42977.0,42976.0,0.29252114]
[1642218701286,0.00515471,42977.0,42976.0,0.29252114]
[1642218701885,0.00515471,42977.0,42973.0,0.2424718]
[1642218702085,0.00515471,42977.0,42967.0,0.26193239]
[1642218702331,6.876e-05,42977.0,42967.0,0.26193239]
[1642218702532,6.876e-05,42977.0,42968.0,8.595e-05]
[1642218702733,0.00508595,42969.0,42968.0,8.595e-05]
[1642218703536,0.28812144,42972.0,42968.0,8.595e-05]
[1642218703736,0.34631844,42972.0,42968.0,8.595e-05]
[1642218704037,0.28812144,42972.0,42968.0,8.595e-05]
[1642218704241,0.00508595,42969.0,42968.0,8.595e-05]
[1642218704437,0.28812144,42972.0,42968.0,8.595e-05]
[1642218705037,0.28812144,42972.0,42967.0,0.00010314]
[1642218705638,0.0525589,42975.0,42967.0,0.00010314]
[1642218706080,0.04747295,42975.0,42967.0,0.00010314]
[1642218706281,0.0525589,42975.0,42967.0,0.21259423]
[1642218706482,0.0063589,42975.0,42967.0,0.21259423]
[1642218706785,0.0063589,42975.0,42968.0,8.595e-05]
[1642218708182,6.876e-05,42977.0,42969.0,0.058177]
[1642218708382,6.876e-05,42977.0,42970.0,0.2444292]
[1642218708782,6.876e-05,42977.0,42968.0,8.595e-05]
[1642218708983,0.00508595,42972.0,42968.0,8.595e-05]
[1642218709183,0.00508595,42972.0,42967.0,0.00010314]
[1642218710934,0.00508595,42976.0,42967.0,0.2384148]
[1642218711131,6.876e-05,42977.0,42967.0,0.2384148]
[1642218711331,6.876e-05,42977.0,42973.0,0.32375936]
[1642218711531,0.376265,42976.0,42973.0,0.32375936]
[1642218711732,0.00508595,42974.0,42968.0,8.595e-05]
[1642218712733,0.00508595,42974.0,42970.0,0.32883007]
[1642218713033,6.876e-05,42977.0,42971.0,0.2168805]
[1642218713234,6.876e-05,42977.0,42969.0,0.00127001]
[1642218714085,6.876e-05,42977.0,42973.0,0.30686686]
[1642218714381,0.00508595,42975.0,42974.0,0.21203644]
[1642218714981,6.876e-05,42977.0,42974.0,0.21203644]
[1642218715382,6.876e-05,42977.0,42975.0,0.376265]
[1642218715983,6.876e-05,42977.0,42976.0,0.88500329]
[1642218716183,6.876e-05,42977.0,42976.0,0.66126829]
[1642218716382,6.876e-05,42977.0,42976.0,0.28500329]
[1642218717440,6.876e-05,42977.0,42976.0,0.50761364]
[1642218717639,6.876e-05,42977.0,42976.0,0.88387864]
[1642218719243,6.876e-05,42977.0,42976.0,0.50761364]
[1642218719643,6.876e-05,42977.0,42976.0,0.51661364]
[1642218720745,6.876e-05,42977.0,42976.0,0.50761364]
[1642218721079,6.876e-05,42977.0,42976.0,0.88387864]
[1642218721382,6.876e-05,42977.0,42976.0,0.28500329]
[1642218721580,6.876e-05,42977.0,42976.0,0.29400329]
[1642218721979,0.00515471,42977.0,42976.0,0.29400329]
[1642218723080,0.00515471,42977.0,42976.0,0.28500329]
[1642218723279,0.00515471,42977.0,42976.0,0.66126829]
[1642218723481,0.00515471,42977.0,42976.0,0.88257322]
[1642218724480,0.00515471,42977.0,42976.0,0.66126829]
[1642218725540,0.00515471,42977.0,42976.0,0.29300329]
[1642218726743,0.00515471,42977.0,42976.0,0.008]
[1642218726944,0.00515471,42977.0,42973.0,0.30686686]
[1642218727946,6.876e-05,42977.0,42973.0,0.30686686]
[1642218728583,0.00508595,42974.0,42973.0,0.30686686]
[1642218729584,0.00508595,42974.0,42968.0,8.595e-05]
[1642218729585,0.00508595,42974.0,42972.0,0.012]
[1642218730686,0.00508595,42974.0,42973.0,0.5271362]
[1642218731685,0.00508595,42974.0,42973.0,0.5361362]
[1642218732942,0.00508595,42974.0,42973.0,0.5271362]
[1642218733344,6.876e-05,42977.0,42973.0,0.75003359]
[1642218733541,6.876e-05,42977.0,42973.0,0.75903359]
[1642218733941,6.876e-05,42977.0,42973.0,0.5361362]
[1642218734542,0.00508595,42974.0,42973.0,0.5361362]
[1642218734741,0.00508595,42974.0,42973.0,0.9124012]
[1642218735345,6.876e-05,42977.0,42973.0,0.9124012]
[1642218735543,6.876e-05,42977.0,42973.0,0.5381362]
[1642218736787,6.876e-05,42977.0,42973.0,0.59631152]
[1642218736988,0.00508595,42978.0,42973.0,0.59631152]
[1642218736989,0.00127961,42983.0,42974.0,1.3]
[1642218737189,0.58274066,42984.0,42975.0,0.32644511]
[1642218737387,8.595e-05,42982.0,42975.0,0.32644511]
[1642218737788,6.876e-05,42981.0,42975.0,0.32644511]
[1642218737991,6.876e-05,42981.0,42977.0,0.11633692]
[1642218738187,0.00013752,42985.0,42983.0,0.2987052]
[1642218738389,0.00013752,42985.0,42984.0,0.2170074]
[1642218738588,0.472,42986.0,42984.0,0.2170074]
[1642218739188,0.472,42986.0,42983.0,0.63999063]
[1642218739390,0.472,42986.0,42984.0,0.21357955]
[1642218739589,0.472,42986.0,42983.0,0.3017052]
[1642218739834,0.472,42986.0,42984.0,0.21557145]
[1642218740040,0.376265,42985.0,42984.0,0.21557145]
[1642218740836,0.376265,42985.0,42983.0,0.2987052]
[1642218741036,0.472,42986.0,42984.0,0.21402084]
[1642218741237,0.00012033,42984.0,42983.0,0.63857892]
[1642218741436,0.00012033,42984.0,42983.0,0.51796765]
[1642218741638,0.00012033,42984.0,42983.0,0.51996765]
[1642218741836,0.00012033,42984.0,42983.0,0.002]
[1642218742038,0.37638533,42984.0,42983.0,0.002]
[1642218742638,0.00012033,42984.0,42983.0,0.002]
[1642218743246,0.00012033,42984.0,42983.0,0.22872041]
[1642218743440,0.00012033,42984.0,42983.0,0.22672041]
[1642218743892,0.41262034,42986.0,42984.0,0.75]
[1642218744094,0.41262034,42986.0,42985.0,0.79630938]
[1642218744292,0.58274066,42988.0,42986.0,0.058154]
[1642218744492,0.58274066,42988.0,42987.0,0.23970132]
[1642218744693,0.00128994,42997.0,42987.0,0.23970132]
[1642218744694,0.58274066,42993.0,42987.0,0.23970132]
[1642218744896,6.876e-05,42988.0,42987.0,1.40151132]
[1642218745093,6.876e-05,42988.0,42987.0,1.77905098]
[1642218745295,6.876e-05,42988.0,42987.0,1.83720398]
[1642218745496,8.76e-06,42988.0,42987.0,1.98340398]
[1642218745697,8.76e-06,42988.0,42987.0,2.10140398]
[1642218746596,8.76e-06,42988.0,42987.0,2.21770425]
[1642218746896,8.76e-06,42988.0,42987.0,2.29970425]
[1642218747740,8.76e-06,42988.0,42987.0,2.33370425]
[1642218747941,8.76e-06,42988.0,42987.0,2.23370425]
[1642218748941,8.76e-06,42988.0,42987.0,0.89970425]
[1642218749142,8.76e-06,42988.0,42987.0,0.59819293]
[1642218749541,8.76e-06,42988.0,42987.0,0.55199293]
[1642218749742,8.76e-06,42988.0,42987.0,0.50369266]
[1642218749942,8.76e-06,42988.0,42987.0,0.444265]
[1642218750943,8.76e-06,42988.0,42987.0,0.376265]
[1642218751187,8.76e-06,42988.0,42986.0,0.05815766]
[1642218751684,8.76e-06,42988.0,42984.0,0.11631259]
[1642218751884,8.76e-06,42988.0,42985.0,0.60799357]
[1642218753187,8.76e-06,42988.0,42985.0,0.66614947]
[1642218753789,8.76e-06,42988.0,42985.0,0.71914947]
[1642218755043,8.76e-06,42988.0,42985.0,0.60799357]
[1642218755244,8.76e-06,42988.0,42985.0,0.376265]
[1642218756844,8.76e-06,42988.0,42984.0,0.34515936]
[1642218757047,8.76e-06,42988.0,42984.0,0.11631259]
[1642218757249,8.76e-06,42988.0,42982.0,0.058165]
[1642218757546,8.76e-06,42988.0,42983.0,0.37634219]
[1642218757745,8.76e-06,42988.0,42984.0,0.2100521]
[1642218757946,8.76e-06,42988.0,42985.0,0.376265]
[1642218758346,8.76e-06,42988.0,42984.0,0.2100521]
[1642218758589,8.76e-06,42988.0,42983.0,7.719e-05]
[1642218758994,8.76e-06,42988.0,42984.0,0.376265]
[1642218763036,8.76e-06,42988.0,42983.0,7.719e-05]
[1642218765339,8.76e-06,42988.0,42984.0,0.36274453]
[1642218765539,8.76e-06,42988.0,42983.0,7.719e-05]
[1642218765739,8.76e-06,42988.0,42984.0,0.376265]
[1642218766189,8.76e-06,42988.0,42983.0,7.719e-05]
[1642218766389,8.76e-06,42988.0,42984.0,0.376265]
[1642218766592,8.76e-06,42988.0,42983.0,0.05823899]
[1642218767994,8.76e-06,42988.0,42983.0,7.719e-05]
[1642218768391,8.76e-06,42988.0,42982.0,9.438e-05]
[1642218769957,8.76e-06,42988.0,42981.0,0.00011157]
[1642218770861,0.00123592,42982.0,42981.0,0.00011157]
[1642218771260,0.04743592,42982.0,42981.0,0.00011157]
[1642218771461,0.04743592,42982.0,42974.0,0.0002319]
[1642218771660,0.04743592,42982.0,42972.0,0.00026628]
[1642218771862,0.04743592,42982.0,42974.0,0.28864144]
[1642218772259,0.04743592,42982.0,42975.0,0.00021471]
[1642218772859,0.0462,42982.0,42975.0,0.00021471]
[1642218773589,0.22082042,42981.0,42975.0,0.00021471]
[1642218774592,0.0462,42982.0,42975.0,0.00021471]
[1642218776394,0.0462,42982.0,42974.0,0.72343156]
[1642218776593,0.00010314,42981.0,42974.0,0.72343156]
[1642218776996,8.595e-05,42980.0,42974.0,0.60643156]
[1642218777442,6.876e-05,42979.0,42974.0,0.32257541]
[1642218777842,0.00010314,42981.0,42974.0,0.44257541]
[1642218778143,8.595e-05,42980.0,42974.0,0.44257541]
[1642218778542,0.26524917,42981.0,42974.0,0.73504012]
[1642218778941,0.26524917,42981.0,42974.0,0.61504012]
[1642218779142,0.26524917,42981.0,42975.0,6.876e-05]
[1642218783926,0.32468832,42981.0,42975.0,6.876e-05]
[1642218784127,0.376265,42980.0,42975.0,6.876e-05]
[1642218785354,0.90742898,42981.0,42975.0,6.876e-05]
[1642218785754,0.90942898,42981.0,42975.0,6.876e-05]
[1642218785954,0.58274066,42980.0,42975.0,6.876e-05]
[1642218786157,0.00127219,42976.0,42970.0,0.009312]
[1642218786355,0.422465,42975.0,42970.0,0.009312]
[1642218786655,0.00126395,42972.0,42971.0,6.876e-05]
[1642218786853,0.09944995,42972.0,42971.0,6.876e-05]
[1642218787054,0.41505299,42972.0,42971.0,6.876e-05]
[1642218787356,0.54192219,42972.0,42971.0,6.876e-05]
[1642218787555,0.41505299,42972.0,42971.0,6.876e-05]
[1642218787854,0.43805299,42972.0,42971.0,6.876e-05]
[1642218788455,0.67082145,42972.0,42971.0,6.876e-05]
[1642218788893,1.11791709,42972.0,42971.0,6.876e-05]
[1642218789098,1.09491709,42972.0,42971.0,6.876e-05]
[1642218789895,1.11791709,42972.0,42971.0,6.876e-05]
[1642218790893,0.80231405,42972.0,42971.0,6.876e-05]
[1642218791093,0.77931405,42972.0,42971.0,6.876e-05]
[1642218791794,0.80231405,42972.0,42971.0,6.876e-05]
[1642218791993,0.90231405,42972.0,42971.0,6.876e-05]
[1642218792198,0.80231405,42972.0,42971.0,6.876e-05]
[1642218792447,0.80231405,42972.0,42964.0,0.44997389]
[1642218792646,0.058197,42971.0,42965.0,0.00010314]
[1642218792945,0.422465,42970.0,42965.0,0.00010314]
[1642218793146,1.00331136,42970.0,42965.0,0.00010314]
[1642218793548,0.58084636,42970.0,42965.0,0.00010314]
[1642218793749,0.60484636,42970.0,42965.0,0.00010314]
[1642218794146,0.58084636,42969.0,42965.0,0.00010314]
[1642218794560,0.58084636,42969.0,42965.0,0.05828814]
[1642218794746,0.024,42970.0,42965.0,0.05828814]
[1642218794949,0.58084636,42976.0,42966.0,0.37635095]
[1642218795147,0.58084636,42976.0,42966.0,8.595e-05]
[1642218795348,6.876e-05,42975.0,42967.0,6.876e-05]
[1642218795547,6.876e-05,42975.0,42966.0,8.595e-05]
[1642218795747,6.876e-05,42975.0,42970.0,0.31209778]
[1642218796088,6.876e-05,42975.0,42966.0,8.595e-05]
[1642218797088,6.876e-05,42975.0,42968.0,0.31523952]
[1642218797490,6.876e-05,42975.0,42968.0,0.31023952]
[1642218797888,0.376265,42974.0,42968.0,0.31023952]
[1642218798089,6.876e-05,42975.0,42969.0,0.20716773]
[1642218798287,6.876e-05,42975.0,42969.0,0.21121492]
[1642218798487,6.876e-05,42975.0,42968.0,0.31023952]
[1642218798687,6.876e-05,42975.0,42969.0,0.20779621]
[1642218799388,0.376265,42974.0,42969.0,0.20779621]
[1642218799588,0.376265,42974.0,42968.0,0.31023952]
[1642218799589,6.876e-05,42975.0,42968.0,0.31023952]
[1642218799852,6.876e-05,42975.0,42969.0,0.20886511]
[1642218800251,6.876e-05,42975.0,42968.0,0.31723952]
[1642218800451,6.876e-05,42975.0,42969.0,0.21188301]
[1642218800651,6.876e-05,42975.0,42968.0,0.31723952]
[1642218801052,6.876e-05,42975.0,42969.0,0.21222695]
[1642218801254,6.876e-05,42975.0,42968.0,0.31023952]
[1642218801653,6.876e-05,42975.0,42969.0,0.20919852]
[1642218801853,6.876e-05,42975.0,42972.0,0.24580752]
[1642218803156,6.876e-05,42975.0,42968.0,0.31023952]
[1642218803997,6.876e-05,42975.0,42969.0,0.30051228]
[1642218804495,6.876e-05,42975.0,42969.0,0.51236277]
[1642218805400,6.876e-05,42975.0,42969.0,0.30051228]
[1642218810246,0.05826076,42975.0,42969.0,0.30051228]